[Event "Early-Titled-Tuesday-Blitz-September-26-2023"]
[Site "Chess.com"]
[Date "2023.09.26"]
[Round "4"]
[White "AleksanderHnydiuk"]
[Black "Mikhail_Bryakin"]
[Result "0-1"]
[WhiteElo "2549"]
[BlackElo "2836"]
[TimeControl "180+1"]
[EndTime "8:35:17 PDT"]
[Termination "Mikhail_Bryakin won by resignation"]

1. e4 {[%clk 0:03:00.9]} 1... d5 {[%clk 0:02:54.2]} 2. exd5 {[%clk 0:03:00.2]}
2... Qxd5 {[%clk 0:02:55.1]} 3. Nc3 {[%clk 0:02:59.8]} 3... Qe5+ {[%clk
0:02:55.8]} 4. Be2 {[%clk 0:02:56.3]} 4... Bg4 {[%clk 0:02:56.2]} 5. d4 {[%clk
0:02:55.6]} 5... Bxe2 {[%clk 0:02:56.9]} 6. Ngxe2 {[%clk 0:02:55.1]} 6... Qa5
{[%clk 0:02:57.3]} 7. O-O {[%clk 0:02:45.8]} 7... Nf6 {[%clk 0:02:56.9]} 8. b4
{[%clk 0:02:36.1]} 8... Qh5 {[%clk 0:02:56.2]} 9. d5 {[%clk 0:02:22.7]} 9... e6
{[%clk 0:02:54.1]} 10. dxe6 {[%clk 0:02:20.4]} 10... Bxb4 {[%clk 0:02:54]} 11.
exf7+ {[%clk 0:02:09.5]} 11... Qxf7 {[%clk 0:02:54.9]} 12. Rb1 {[%clk
0:02:03.6]} 12... Nc6 {[%clk 0:02:55.1]} 13. a3 {[%clk 0:01:55.6]} 13... Bd6
{[%clk 0:02:55.7]} 14. Rxb7 {[%clk 0:01:49.4]} 14... O-O-O {[%clk 0:02:55.7]}
15. Rb3 {[%clk 0:01:08]} 15... Bxh2+ {[%clk 0:02:55]} 16. Kxh2 {[%clk
0:01:08.9]} 16... Rxd1 {[%clk 0:02:55.4]} 17. Rxd1 {[%clk 0:01:09.7]} 17... Ng4+
{[%clk 0:02:50]} 0-1

[Event "Early-Titled-Tuesday-Blitz-September-26-2023"]
[Site "Chess.com"]
[Date "2023.09.26"]
[Round "4"]
[White "SargissyanSargis"]
[Black "marcodobrikov"]
[Result "0-1"]
[WhiteElo "2422"]
[BlackElo "2643"]
[TimeControl "180+1"]
[EndTime "8:35:56 PDT"]
[Termination "marcodobrikov won by resignation"]

1. e4 {[%clk 0:03:00.9]} 1... Nc6 {[%clk 0:02:58.8]} 2. Nf3 {[%clk 0:03:00.1]}
2... d6 {[%clk 0:02:56.1]} 3. Nc3 {[%clk 0:02:58.2]} 3... Nf6 {[%clk 0:02:54.8]}
4. d4 {[%clk 0:02:57.3]} 4... Bg4 {[%clk 0:02:52.1]} 5. Be3 {[%clk 0:02:56.6]}
5... e5 {[%clk 0:02:49.8]} 6. d5 {[%clk 0:02:56.6]} 6... Ne7 {[%clk 0:02:49.8]}
7. h3 {[%clk 0:02:52.3]} 7... Bd7 {[%clk 0:02:48.2]} 8. Be2 {[%clk 0:02:43.3]}
8... g6 {[%clk 0:02:48.3]} 9. Qd2 {[%clk 0:02:38.4]} 9... Bg7 {[%clk 0:02:47]}
10. g4 {[%clk 0:02:34]} 10... h6 {[%clk 0:02:39.7]} 11. O-O-O {[%clk 0:02:31.2]}
11... a6 {[%clk 0:02:36.6]} 12. g5 {[%clk 0:02:23.9]} 12... hxg5 {[%clk
0:02:32.8]} 13. Nxg5 {[%clk 0:02:24.8]} 13... Nh5 {[%clk 0:02:28.3]} 14. f4
{[%clk 0:01:45.6]} 14... exf4 {[%clk 0:02:09.7]} 15. Bxf4 {[%clk 0:01:45.9]}
15... Nxf4 {[%clk 0:02:10.5]} 16. Qxf4 {[%clk 0:01:45.3]} 16... f6 {[%clk
0:02:08.6]} 17. Ne6 {[%clk 0:01:42.2]} 17... Bxe6 {[%clk 0:02:05.7]} 18. dxe6
{[%clk 0:01:43.1]} 18... Bh6 {[%clk 0:02:06.3]} 0-1

[Event "Early-Titled-Tuesday-Blitz-September-26-2023"]
[Site "Chess.com"]
[Date "2023.09.26"]
[Round "4"]
[White "Caroexpert"]
[Black "ZeGood_ZeBad_ZeUgly"]
[Result "0-1"]
[WhiteElo "2438"]
[BlackElo "2282"]
[TimeControl "180+1"]
[EndTime "8:36:00 PDT"]
[Termination "ZeGood_ZeBad_ZeUgly won by resignation"]

1. d4 {[%clk 0:02:57.2]} 1... Nf6 {[%clk 0:02:58.4]} 2. c4 {[%clk 0:02:57.6]}
2... e6 {[%clk 0:02:58.7]} 3. Nf3 {[%clk 0:02:55.6]} 3... d5 {[%clk 0:02:54.4]}
4. Bg5 {[%clk 0:02:55.8]} 4... c6 {[%clk 0:02:48.9]} 5. e3 {[%clk 0:02:51]} 5...
Nbd7 {[%clk 0:02:48.4]} 6. Nbd2 {[%clk 0:02:49.4]} 6... h6 {[%clk 0:02:45.8]} 7.
Bh4 {[%clk 0:02:48.1]} 7... Be7 {[%clk 0:02:43.7]} 8. Be2 {[%clk 0:02:48]} 8...
Ne4 {[%clk 0:02:39.8]} 9. Bxe7 {[%clk 0:02:45.2]} 9... Qxe7 {[%clk 0:02:39.8]}
10. O-O {[%clk 0:02:45.6]} 10... f5 {[%clk 0:02:33.6]} 11. Ne1 {[%clk
0:02:41.2]} 11... Qg5 {[%clk 0:02:17.7]} 12. Nd3 {[%clk 0:02:25.1]} 12... O-O
{[%clk 0:02:14.4]} 13. Nf3 {[%clk 0:02:20.7]} 13... Qf6 {[%clk 0:02:14]} 14.
Nfe5 {[%clk 0:02:20.4]} 14... Nxe5 {[%clk 0:02:14.2]} 15. Nxe5 {[%clk
0:02:20.5]} 15... Nd6 {[%clk 0:01:58.1]} 16. c5 {[%clk 0:02:06.7]} 16... Nf7
{[%clk 0:01:55.7]} 17. Nd3 {[%clk 0:02:01.6]} 17... e5 {[%clk 0:01:54.1]} 18. f4
{[%clk 0:01:56.2]} 18... exd4 {[%clk 0:01:52.6]} 19. exd4 {[%clk 0:01:56.6]}
19... Qxd4+ {[%clk 0:01:53.5]} 20. Kh1 {[%clk 0:01:56.3]} 20... Qf6 {[%clk
0:01:46.6]} 21. Bg4 {[%clk 0:01:55]} 21... fxg4 {[%clk 0:01:40.5]} 22. Qd2
{[%clk 0:01:51.3]} 22... Bf5 {[%clk 0:01:40]} 0-1

[Event "Early-Titled-Tuesday-Blitz-September-26-2023"]
[Site "Chess.com"]
[Date "2023.09.26"]
[Round "4"]
[White "whitemirrorninja"]
[Black "kidagent"]
[Result "1-0"]
[WhiteElo "2480"]
[BlackElo "2234"]
[TimeControl "180+1"]
[EndTime "8:36:05 PDT"]
[Termination "whitemirrorninja won by resignation"]

1. d4 {[%clk 0:02:57.3]} 1... d5 {[%clk 0:02:59.5]} 2. Bf4 {[%clk 0:02:56.5]}
2... Nf6 {[%clk 0:02:58.1]} 3. e3 {[%clk 0:02:56.8]} 3... c6 {[%clk 0:02:57.5]}
4. Nf3 {[%clk 0:02:56.9]} 4... Bf5 {[%clk 0:02:52.3]} 5. c4 {[%clk 0:02:55]}
5... e6 {[%clk 0:02:47.8]} 6. Nc3 {[%clk 0:02:55.6]} 6... Nbd7 {[%clk
0:02:44.1]} 7. h3 {[%clk 0:02:55]} 7... h6 {[%clk 0:02:39.7]} 8. Qb3 {[%clk
0:02:54.9]} 8... Qc8 {[%clk 0:02:30.6]} 9. Rc1 {[%clk 0:02:53.8]} 9... Ne4
{[%clk 0:02:19.1]} 10. cxd5 {[%clk 0:02:49.5]} 10... Nxc3 {[%clk 0:02:18.5]} 11.
dxc6 {[%clk 0:02:31.2]} 11... bxc6 {[%clk 0:02:17.7]} 12. Qxc3 {[%clk
0:02:26.3]} 12... g5 {[%clk 0:02:08.3]} 13. Bg3 {[%clk 0:02:23.4]} 13... a5
{[%clk 0:02:03.5]} 14. Qxc6 {[%clk 0:02:21.2]} 14... Qxc6 {[%clk 0:02:01.5]} 15.
Rxc6 {[%clk 0:02:22.1]} 15... Bb4+ {[%clk 0:01:58]} 16. Kd1 {[%clk 0:02:19.6]}
16... O-O {[%clk 0:01:52.5]} 17. a3 {[%clk 0:02:19.9]} 17... Be7 {[%clk
0:01:49.7]} 18. Rc7 {[%clk 0:02:18.8]} 18... Rfd8 {[%clk 0:01:45.1]} 19. Bb5
{[%clk 0:02:17.5]} 19... e5 {[%clk 0:01:41.9]} 20. Bxd7 {[%clk 0:02:12.8]} 20...
Rxd7 {[%clk 0:01:39.6]} 21. Rxd7 {[%clk 0:02:12.5]} 21... Bxd7 {[%clk
0:01:40.5]} 22. Nxe5 {[%clk 0:02:12.2]} 22... Ba4+ {[%clk 0:01:37.5]} 23. Kd2
{[%clk 0:02:12.9]} 23... Rb8 {[%clk 0:01:27.8]} 24. Nd3 {[%clk 0:02:12.5]} 24...
Rc8 {[%clk 0:01:26.5]} 25. Rc1 {[%clk 0:02:12.5]} 25... Rxc1 {[%clk 0:01:23.3]}
26. Nxc1 {[%clk 0:02:13.4]} 26... f5 {[%clk 0:01:22.2]} 27. Nd3 {[%clk
0:02:13.1]} 27... Kf7 {[%clk 0:01:21.5]} 28. Bc7 {[%clk 0:02:13.3]} 1-0

[Event "Early-Titled-Tuesday-Blitz-September-26-2023"]
[Site "Chess.com"]
[Date "2023.09.26"]
[Round "4"]
[White "goodluck06"]
[Black "schack_vit"]
[Result "1-0"]
[WhiteElo "2667"]
[BlackElo "2451"]
[TimeControl "180+1"]
[EndTime "8:36:06 PDT"]
[Termination "goodluck06 won by resignation"]

1. Nf3 {[%clk 0:03:00.9]} 1... c5 {[%clk 0:03:00.2]} 2. g3 {[%clk 0:03:00.7]}
2... Nc6 {[%clk 0:03:00.1]} 3. Bg2 {[%clk 0:03:01.2]} 3... g6 {[%clk 0:03:00.8]}
4. O-O {[%clk 0:03:01.5]} 4... Bg7 {[%clk 0:03:01.5]} 5. c4 {[%clk 0:03:01.7]}
5... a6 {[%clk 0:03:00.7]} 6. Nc3 {[%clk 0:03:01.4]} 6... Rb8 {[%clk 0:03:01.2]}
7. e3 {[%clk 0:02:49.2]} 7... b5 {[%clk 0:02:57.8]} 8. d4 {[%clk 0:02:41.9]}
8... cxd4 {[%clk 0:02:57.5]} 9. exd4 {[%clk 0:02:41.9]} 9... bxc4 {[%clk
0:02:55.8]} 10. Re1 {[%clk 0:02:35]} 10... d6 {[%clk 0:02:37.3]} 11. d5 {[%clk
0:02:28.8]} 11... Na5 {[%clk 0:02:33.6]} 12. Nd4 {[%clk 0:02:20.1]} 12... Nf6
{[%clk 0:02:30.9]} 13. Qa4+ {[%clk 0:01:53.1]} 13... Bd7 {[%clk 0:02:17.8]} 14.
Nc6 {[%clk 0:01:51.8]} 14... Bxc6 {[%clk 0:02:18]} 15. dxc6 {[%clk 0:01:46.9]}
15... Qc7 {[%clk 0:02:18.3]} 16. Bd2 {[%clk 0:01:40.5]} 16... Rxb2 {[%clk
0:01:59.9]} 17. Rab1 {[%clk 0:01:26.9]} 17... Rxd2 {[%clk 0:01:56.4]} 18. Rb8+
{[%clk 0:01:22.6]} 1-0

[Event "Early-Titled-Tuesday-Blitz-September-26-2023"]
[Site "Chess.com"]
[Date "2023.09.26"]
[Round "4"]
[White "Rutricks"]
[Black "h4parah5"]
[Result "0-1"]
[WhiteElo "2691"]
[BlackElo "2960"]
[TimeControl "180+1"]
[EndTime "8:36:33 PDT"]
[Termination "h4parah5 won by resignation"]

1. Nf3 {[%clk 0:02:59.3]} 1... c5 {[%clk 0:02:59.2]} 2. d3 {[%clk 0:02:59.1]}
2... Nc6 {[%clk 0:02:58.7]} 3. Nbd2 {[%clk 0:02:59.5]} 3... d5 {[%clk
0:02:58.6]} 4. e4 {[%clk 0:02:59.9]} 4... e6 {[%clk 0:02:59.1]} 5. g3 {[%clk
0:03:00.1]} 5... Nf6 {[%clk 0:02:59.5]} 6. Bg2 {[%clk 0:03:00.7]} 6... Be7
{[%clk 0:02:59.9]} 7. O-O {[%clk 0:03:01.4]} 7... O-O {[%clk 0:03:00.3]} 8. exd5
{[%clk 0:03:00]} 8... exd5 {[%clk 0:02:56]} 9. a4 {[%clk 0:03:00]} 9... Re8
{[%clk 0:02:53.2]} 10. d4 {[%clk 0:02:58.3]} 10... Bf5 {[%clk 0:02:50.5]} 11.
dxc5 {[%clk 0:02:53.5]} 11... Bxc5 {[%clk 0:02:51.4]} 12. Nb3 {[%clk 0:02:53.6]}
12... Bb6 {[%clk 0:02:51]} 13. Bg5 {[%clk 0:02:44.3]} 13... h6 {[%clk
0:02:50.6]} 14. Bxf6 {[%clk 0:02:44.5]} 14... Qxf6 {[%clk 0:02:51.5]} 15. a5
{[%clk 0:02:45.1]} 15... Bc7 {[%clk 0:02:50.9]} 16. a6 {[%clk 0:01:24.9]} 16...
bxa6 {[%clk 0:02:31.8]} 17. Qxd5 {[%clk 0:01:24.3]} 17... Be4 {[%clk 0:02:29.5]}
18. Qc4 {[%clk 0:00:53.4]} 18... Bxf3 {[%clk 0:02:23.5]} 19. Bxf3 {[%clk
0:00:54.3]} 19... Qxf3 {[%clk 0:02:23.2]} 20. Nd2 {[%clk 0:00:54.8]} 20... Qf6
{[%clk 0:02:19.2]} 21. Rxa6 {[%clk 0:00:53.9]} 21... Bb6 {[%clk 0:02:18.8]} 22.
Ne4 {[%clk 0:00:49.5]} 22... Qe6 {[%clk 0:02:16.5]} 23. Qxe6 {[%clk 0:00:48.6]}
23... Rxe6 {[%clk 0:02:17.4]} 24. Nc3 {[%clk 0:00:49.1]} 24... Nb4 {[%clk
0:02:15.2]} 0-1

[Event "Early-Titled-Tuesday-Blitz-September-26-2023"]
[Site "Chess.com"]
[Date "2023.09.26"]
[Round "4"]
[White "xxysoul6"]
[Black "A-Fier"]
[Result "1-0"]
[WhiteElo "3028"]
[BlackElo "2815"]
[TimeControl "180+1"]
[EndTime "8:36:48 PDT"]
[Termination "xxysoul6 won by resignation"]

1. e4 {[%clk 0:03:00.9]} 1... Nf6 {[%clk 0:02:57.8]} 2. e5 {[%clk 0:03:00.2]}
2... Nd5 {[%clk 0:02:57.7]} 3. d4 {[%clk 0:03:00.6]} 3... d6 {[%clk 0:02:58.1]}
4. c4 {[%clk 0:03:01]} 4... Nb6 {[%clk 0:02:58.3]} 5. f4 {[%clk 0:03:01.6]} 5...
dxe5 {[%clk 0:02:55.8]} 6. fxe5 {[%clk 0:03:02.5]} 6... Nc6 {[%clk 0:02:56.3]}
7. Be3 {[%clk 0:03:02.5]} 7... Bf5 {[%clk 0:02:57]} 8. Nc3 {[%clk 0:03:01.9]}
8... e6 {[%clk 0:02:57.6]} 9. Nf3 {[%clk 0:03:02.3]} 9... Be7 {[%clk 0:02:58.1]}
10. d5 {[%clk 0:02:54.4]} 10... exd5 {[%clk 0:02:56.8]} 11. cxd5 {[%clk
0:02:55.3]} 11... Nb4 {[%clk 0:02:57.3]} 12. Nd4 {[%clk 0:02:53.9]} 12... Bd7
{[%clk 0:02:57.9]} 13. e6 {[%clk 0:02:51.1]} 13... fxe6 {[%clk 0:02:58.8]} 14.
dxe6 {[%clk 0:02:49.3]} 14... Bc6 {[%clk 0:02:59.1]} 15. a3 {[%clk 0:02:20.2]}
15... Bh4+ {[%clk 0:02:48.3]} 16. g3 {[%clk 0:02:19.9]} 16... Bxh1 {[%clk
0:02:48.5]} 17. axb4 {[%clk 0:02:16.3]} 17... Bf6 {[%clk 0:02:48.7]} 18. Qg4
{[%clk 0:02:10.1]} 18... O-O {[%clk 0:02:47.5]} 19. O-O-O {[%clk 0:02:09.7]}
19... Nd5 {[%clk 0:02:40.4]} 20. Bc4 {[%clk 0:01:34.8]} 20... Kh8 {[%clk
0:02:21.7]} 21. Bxd5 {[%clk 0:01:28.3]} 21... Bxd5 {[%clk 0:02:20.3]} 22. Nf5
{[%clk 0:01:28.3]} 22... Bxc3 {[%clk 0:02:15.2]} 23. bxc3 {[%clk 0:01:11.6]}
23... Qf6 {[%clk 0:01:57]} 24. Bd4 {[%clk 0:01:09.7]} 24... Qg6 {[%clk
0:01:57.2]} 25. Bxg7+ {[%clk 0:01:07.2]} 25... Kg8 {[%clk 0:01:57.4]} 26. Ne7+
{[%clk 0:01:07.3]} 26... Kxg7 {[%clk 0:01:57.2]} 27. Nxg6 {[%clk 0:01:08]} 27...
Bf3 {[%clk 0:01:57]} 28. Rd7+ {[%clk 0:01:05.7]} 1-0

[Event "Early-Titled-Tuesday-Blitz-September-26-2023"]
[Site "Chess.com"]
[Date "2023.09.26"]
[Round "4"]
[White "skkeyan1309"]
[Black "UK_23"]
[Result "1-0"]
[WhiteElo "2722"]
[BlackElo "2406"]
[TimeControl "180+1"]
[EndTime "8:36:59 PDT"]
[Termination "skkeyan1309 won by resignation"]

1. Nc3 {[%clk 0:03:00.9]} 1... e5 {[%clk 0:02:59.5]} 2. Nf3 {[%clk 0:03:00.6]}
2... Nc6 {[%clk 0:02:55.9]} 3. d4 {[%clk 0:03:01.1]} 3... exd4 {[%clk
0:02:55.6]} 4. Nxd4 {[%clk 0:03:02]} 4... Nge7 {[%clk 0:02:46.1]} 5. e4 {[%clk
0:03:01.5]} 5... Nxd4 {[%clk 0:02:41.9]} 6. Qxd4 {[%clk 0:03:02.4]} 6... Nc6
{[%clk 0:02:42.5]} 7. Qc4 {[%clk 0:03:02.6]} 7... d6 {[%clk 0:02:41]} 8. Bf4
{[%clk 0:03:01.4]} 8... Be7 {[%clk 0:02:39]} 9. Be2 {[%clk 0:03:00.4]} 9... Be6
{[%clk 0:02:38.2]} 10. Qb5 {[%clk 0:03:00]} 10... Qd7 {[%clk 0:02:35.6]} 11.
O-O-O {[%clk 0:02:55.9]} 11... O-O {[%clk 0:02:12.5]} 12. h4 {[%clk 0:02:49.3]}
12... a6 {[%clk 0:02:10]} 13. Qd3 {[%clk 0:02:42.5]} 13... Rad8 {[%clk
0:01:55.3]} 14. Qg3 {[%clk 0:02:35.6]} 14... Bf6 {[%clk 0:01:47.4]} 15. Bg5
{[%clk 0:02:28]} 15... Qe7 {[%clk 0:01:41.8]} 16. f4 {[%clk 0:02:25]} 16... Kh8
{[%clk 0:01:37.8]} 17. a3 {[%clk 0:02:15.6]} 17... h6 {[%clk 0:01:24.3]} 18. Bd3
{[%clk 0:02:12.5]} 18... Nd4 {[%clk 0:01:18.1]} 19. f5 {[%clk 0:01:51]} 19...
Bc8 {[%clk 0:01:08.8]} 20. Nd5 {[%clk 0:01:51]} 20... Qe5 {[%clk 0:01:03.2]} 21.
Qxe5 {[%clk 0:01:41.1]} 21... dxe5 {[%clk 0:00:59.8]} 22. Nxf6 {[%clk
0:01:38.9]} 1-0

[Event "Early-Titled-Tuesday-Blitz-September-26-2023"]
[Site "Chess.com"]
[Date "2023.09.26"]
[Round "4"]
[White "Mikhail_Golubev"]
[Black "nrvignesh"]
[Result "1/2-1/2"]
[WhiteElo "2594"]
[BlackElo "2828"]
[TimeControl "180+1"]
[EndTime "8:37:03 PDT"]
[Termination "Game drawn by repetition"]

1. e4 {[%clk 0:03:00.9]} 1... c5 {[%clk 0:02:55.7]} 2. Nf3 {[%clk 0:03:00.8]}
2... Nc6 {[%clk 0:02:56.3]} 3. Nc3 {[%clk 0:02:59.6]} 3... g6 {[%clk 0:02:54.9]}
4. d4 {[%clk 0:02:59.1]} 4... cxd4 {[%clk 0:02:54.9]} 5. Nxd4 {[%clk 0:03:00]}
5... Bg7 {[%clk 0:02:54.4]} 6. Be3 {[%clk 0:03:00.6]} 6... Nf6 {[%clk
0:02:52.1]} 7. Nxc6 {[%clk 0:03:01]} 7... bxc6 {[%clk 0:02:46.3]} 8. e5 {[%clk
0:03:01.1]} 8... Nd5 {[%clk 0:02:30.1]} 9. Nxd5 {[%clk 0:02:59.2]} 9... cxd5
{[%clk 0:02:31]} 10. Qxd5 {[%clk 0:02:59.4]} 10... Rb8 {[%clk 0:02:31.6]} 11.
O-O-O {[%clk 0:02:59.3]} 11... Qc7 {[%clk 0:02:16]} 12. Qc5 {[%clk 0:02:32]}
12... Qxc5 {[%clk 0:02:11.3]} 13. Bxc5 {[%clk 0:02:32.9]} 13... Bxe5 {[%clk
0:02:11.3]} 14. b3 {[%clk 0:02:32.2]} 14... d6 {[%clk 0:02:04.8]} 15. Bxa7
{[%clk 0:02:27]} 15... Ra8 {[%clk 0:02:04.8]} 16. Bd4 {[%clk 0:02:23.3]} 16...
Bxd4 {[%clk 0:02:04]} 17. Rxd4 {[%clk 0:02:24.2]} 17... Rxa2 {[%clk 0:02:04.2]}
18. Kb1 {[%clk 0:02:19.9]} 18... Ra5 {[%clk 0:02:03]} 19. Bc4 {[%clk 0:02:15.3]}
19... Be6 {[%clk 0:01:57.8]} 20. Bxe6 {[%clk 0:01:51.5]} 20... fxe6 {[%clk
0:01:56.2]} 21. Re1 {[%clk 0:01:51.1]} 21... e5 {[%clk 0:01:55.2]} 22. Rb4
{[%clk 0:01:50.4]} 22... Kd7 {[%clk 0:01:54.4]} 23. Rb7+ {[%clk 0:01:24]} 23...
Ke6 {[%clk 0:01:54]} 24. f4 {[%clk 0:01:22.5]} 24... Rha8 {[%clk 0:01:53.2]} 25.
Re2 {[%clk 0:01:18.2]} 25... Ra1+ {[%clk 0:01:38.7]} 26. Kb2 {[%clk 0:01:18.3]}
26... R1a2+ {[%clk 0:01:33.1]} 27. Kb1 {[%clk 0:01:17]} 27... Ra1+ {[%clk
0:01:25.1]} 28. Kb2 {[%clk 0:01:17]} 28... R1a2+ {[%clk 0:01:25.1]} 29. Kb1
{[%clk 0:01:17.2]} 29... Ra1+ {[%clk 0:01:25.3]} 1/2-1/2

[Event "Early-Titled-Tuesday-Blitz-September-26-2023"]
[Site "Chess.com"]
[Date "2023.09.26"]
[Round "4"]
[White "rasmussvane"]
[Black "Aradhya2000"]
[Result "1-0"]
[WhiteElo "2996"]
[BlackElo "2704"]
[TimeControl "180+1"]
[EndTime "8:37:33 PDT"]
[Termination "rasmussvane won by resignation"]

1. Nf3 {[%clk 0:03:00.4]} 1... Nf6 {[%clk 0:02:59.6]} 2. g3 {[%clk 0:03:00.9]}
2... g6 {[%clk 0:03:00.1]} 3. Bg2 {[%clk 0:03:01.3]} 3... Bg7 {[%clk 0:03:00.7]}
4. O-O {[%clk 0:03:01.9]} 4... O-O {[%clk 0:03:01.3]} 5. d4 {[%clk 0:03:02.5]}
5... d5 {[%clk 0:03:01.1]} 6. c3 {[%clk 0:03:01.5]} 6... c6 {[%clk 0:03:00.4]}
7. a4 {[%clk 0:03:01.2]} 7... Bf5 {[%clk 0:02:59.9]} 8. Nbd2 {[%clk 0:02:59.8]}
8... a5 {[%clk 0:02:47.1]} 9. Re1 {[%clk 0:02:58.1]} 9... c5 {[%clk 0:02:17.3]}
10. dxc5 {[%clk 0:02:52.2]} 10... Na6 {[%clk 0:02:17.2]} 11. Nb3 {[%clk
0:02:52.1]} 11... Ne4 {[%clk 0:02:16.8]} 12. Ng5 {[%clk 0:02:49.1]} 12... Rc8
{[%clk 0:02:15.5]} 13. Nxe4 {[%clk 0:02:48.2]} 13... Bxe4 {[%clk 0:02:11.1]} 14.
Bxe4 {[%clk 0:02:46.8]} 14... dxe4 {[%clk 0:02:11.4]} 15. Be3 {[%clk 0:02:42.1]}
15... e6 {[%clk 0:01:40.7]} 16. Qxd8 {[%clk 0:02:41.1]} 16... Rfxd8 {[%clk
0:01:40.5]} 17. Nxa5 {[%clk 0:02:41.4]} 17... Rd7 {[%clk 0:01:37.7]} 18. Red1
{[%clk 0:02:40.1]} 18... Rdc7 {[%clk 0:01:36.3]} 19. Rac1 {[%clk 0:02:34.1]}
19... Nxc5 {[%clk 0:01:30]} 20. Bxc5 {[%clk 0:02:33.2]} 20... Rxc5 {[%clk
0:01:30.9]} 21. Nxb7 {[%clk 0:02:33.8]} 21... R5c6 {[%clk 0:01:25.1]} 22. Nd6
{[%clk 0:02:23]} 22... Rb8 {[%clk 0:01:23.8]} 23. b4 {[%clk 0:02:10.3]} 23...
Rxc3 {[%clk 0:01:16.7]} 24. Rxc3 {[%clk 0:02:08.9]} 24... Bxc3 {[%clk
0:01:17.6]} 25. b5 {[%clk 0:02:06.6]} 25... e3 {[%clk 0:00:57.8]} 26. fxe3
{[%clk 0:02:04.8]} 26... Rd8 {[%clk 0:00:57.6]} 27. Rd3 {[%clk 0:02:02]} 27...
Bb4 {[%clk 0:00:52.5]} 28. Nc4 {[%clk 0:02:00.1]} 28... Rc8 {[%clk 0:00:50.3]}
29. b6 {[%clk 0:02:00.4]} 29... Rb8 {[%clk 0:00:45]} 30. Rd7 {[%clk 0:01:49]}
30... Kf8 {[%clk 0:00:43.7]} 31. b7 {[%clk 0:01:49.2]} 31... Ke8 {[%clk
0:00:43.8]} 32. Rc7 {[%clk 0:01:49.5]} 32... Kd8 {[%clk 0:00:44.3]} 33. Rxf7
{[%clk 0:01:49.7]} 33... Be7 {[%clk 0:00:42]} 34. Na5 {[%clk 0:01:46.6]} 34...
Kd7 {[%clk 0:00:41.5]} 35. Rxe7+ {[%clk 0:01:46.6]} 35... Kxe7 {[%clk 0:00:42]}
36. Nc6+ {[%clk 0:01:46.7]} 1-0

[Event "Early-Titled-Tuesday-Blitz-September-26-2023"]
[Site "Chess.com"]
[Date "2023.09.26"]
[Round "4"]
[White "stratacticos"]
[Black "TheRigos"]
[Result "0-1"]
[WhiteElo "1782"]
[BlackElo "2573"]
[TimeControl "180+1"]
[EndTime "8:37:37 PDT"]
[Termination "TheRigos won by resignation"]

1. e4 {[%clk 0:02:59.2]} 1... f5 {[%clk 0:03:00.9]} 2. exf5 {[%clk 0:02:55.2]}
2... Nf6 {[%clk 0:03:01.5]} 3. g4 {[%clk 0:02:53.1]} 3... h6 {[%clk 0:03:00.9]}
4. Bc4 {[%clk 0:02:40.7]} 4... d5 {[%clk 0:02:59.6]} 5. Be2 {[%clk 0:02:34.9]}
5... e6 {[%clk 0:02:58.5]} 6. fxe6 {[%clk 0:02:33.5]} 6... Bxe6 {[%clk
0:02:59.4]} 7. d4 {[%clk 0:02:33]} 7... c5 {[%clk 0:02:58.9]} 8. g5 {[%clk
0:02:25.6]} 8... hxg5 {[%clk 0:02:57.4]} 9. Bxg5 {[%clk 0:02:25.2]} 9... Nc6
{[%clk 0:02:57.4]} 10. Bh5+ {[%clk 0:02:14.9]} 10... Rxh5 {[%clk 0:02:52.9]} 11.
Bxf6 {[%clk 0:02:10.5]} 11... Qxf6 {[%clk 0:02:08.8]} 12. Qxh5+ {[%clk
0:02:09.1]} 12... Bf7 {[%clk 0:02:09.3]} 13. Qe2+ {[%clk 0:02:07.9]} 13... Kd7
{[%clk 0:02:08]} 14. Qg4+ {[%clk 0:02:00]} 14... Be6 {[%clk 0:02:02.8]} 15. Qf3
{[%clk 0:01:57.3]} 15... Qg6 {[%clk 0:01:58.6]} 16. c3 {[%clk 0:01:30.9]} 16...
cxd4 {[%clk 0:01:56.7]} 17. Ne2 {[%clk 0:01:25.7]} 17... Ne5 {[%clk 0:01:50.4]}
18. Qg3 {[%clk 0:01:16.3]} 18... Qe4 {[%clk 0:01:49.4]} 19. f3 {[%clk
0:00:45.6]} 19... Nxf3+ {[%clk 0:01:45]} 20. Kf2 {[%clk 0:00:44.5]} 20... Bd6
{[%clk 0:01:44.1]} 21. Qxf3 {[%clk 0:00:43.8]} 21... Rf8 {[%clk 0:01:41.9]} 22.
Qxf8 {[%clk 0:00:41.2]} 22... Bxf8 {[%clk 0:01:35.8]} 23. Nd2 {[%clk 0:00:38.2]}
23... Qe3+ {[%clk 0:01:34.7]} 24. Ke1 {[%clk 0:00:36.7]} 24... Bg4 {[%clk
0:01:33.7]} 0-1

[Event "Early-Titled-Tuesday-Blitz-September-26-2023"]
[Site "Chess.com"]
[Date "2023.09.26"]
[Round "4"]
[White "Dacean99"]
[Black "Mikasinski"]
[Result "1-0"]
[WhiteElo "2552"]
[BlackElo "2698"]
[TimeControl "180+1"]
[EndTime "8:37:42 PDT"]
[Termination "Dacean99 won by resignation"]

1. d4 {[%clk 0:03:00.9]} 1... Nf6 {[%clk 0:02:56.7]} 2. Nf3 {[%clk 0:02:59.5]}
2... g6 {[%clk 0:02:57.1]} 3. c4 {[%clk 0:02:54.6]} 3... Bg7 {[%clk 0:02:56.7]}
4. Nc3 {[%clk 0:02:50.8]} 4... d6 {[%clk 0:02:57.2]} 5. e4 {[%clk 0:02:49.4]}
5... O-O {[%clk 0:02:57.8]} 6. Be2 {[%clk 0:02:48.7]} 6... e5 {[%clk 0:02:58.3]}
7. O-O {[%clk 0:02:46.3]} 7... Nc6 {[%clk 0:02:58.7]} 8. d5 {[%clk 0:02:41.6]}
8... Ne7 {[%clk 0:02:58.4]} 9. b4 {[%clk 0:02:40.5]} 9... Nh5 {[%clk 0:02:58.5]}
10. g3 {[%clk 0:02:37.4]} 10... Bg4 {[%clk 0:02:46.2]} 11. Ne1 {[%clk
0:02:32.4]} 11... Bxe2 {[%clk 0:02:35.9]} 12. Qxe2 {[%clk 0:02:33.3]} 12... f5
{[%clk 0:02:36.6]} 13. exf5 {[%clk 0:02:25.3]} 13... Nxf5 {[%clk 0:02:35.4]} 14.
Be3 {[%clk 0:02:19.7]} 14... Nd4 {[%clk 0:02:33.1]} 15. Bxd4 {[%clk 0:02:16.1]}
15... e4 {[%clk 0:02:33.7]} 16. Bxg7 {[%clk 0:02:14.5]} 16... Nxg7 {[%clk
0:02:05.1]} 17. Nxe4 {[%clk 0:02:10.3]} 17... Qd7 {[%clk 0:02:01.3]} 18. Nd3
{[%clk 0:02:09.9]} 18... Rae8 {[%clk 0:01:59.3]} 19. Rae1 {[%clk 0:02:05]} 19...
Kh8 {[%clk 0:01:55.3]} 20. f4 {[%clk 0:02:01.6]} 20... Nf5 {[%clk 0:01:53.2]}
21. Nf6 {[%clk 0:01:45.2]} 21... Rxe2 {[%clk 0:01:44.9]} 22. Nxd7 {[%clk
0:01:45]} 22... Rxe1 {[%clk 0:01:45.1]} 23. Rxe1 {[%clk 0:01:44.6]} 23... Rf7
{[%clk 0:01:43.8]} 24. Re8+ {[%clk 0:01:38.2]} 24... Kg7 {[%clk 0:01:44.2]} 25.
Rd8 {[%clk 0:01:36.6]} 25... Ne3 {[%clk 0:01:39.4]} 26. N3e5 {[%clk 0:01:09.4]}
26... dxe5 {[%clk 0:01:37.2]} 27. Nxe5 {[%clk 0:01:10.3]} 27... Re7 {[%clk
0:01:33.9]} 28. c5 {[%clk 0:01:10.2]} 28... Nf5 {[%clk 0:01:14.5]} 29. d6 {[%clk
0:01:04.4]} 29... cxd6 {[%clk 0:01:14.4]} 30. cxd6 {[%clk 0:01:05.3]} 30... Re6
{[%clk 0:01:15.1]} 31. d7 {[%clk 0:01:03.7]} 31... Rd6 {[%clk 0:01:13.2]} 32.
Re8 {[%clk 0:00:58.5]} 32... Re6 {[%clk 0:01:13.3]} 33. Rxe6 {[%clk 0:00:58.2]}
1-0